[Event "Titled Tuesday Blitz February 21 Late 2023"]
[White "Zhigalko, Sergei"]
[Black "Svane, Rasmus"]
[WhiteFideId "13502956"]
[BlackFideId "4657101"]
[WhiteElo "2572"]
[BlackElo "2623"]
[Result "1/2-1/2"]
[Round "07"]
[TimeControl "180+2"]
[Date "2023.02.21"]
[WhiteClock "0:00:04"]
[BlackClock "0:00:03"]

1. e4 {[%clk 0:03:00]}  e5 {[%clk 0:02:59]} 2. Nf3 {[%clk 0:03:01]}  Nc6 {[%clk 0:03:00]} 3. Bc4 {[%clk 0:03:01]}  Bc5 {[%clk 0:02:59]} 4. b4 {[%clk 0:03:00]}  Bxb4 {[%clk 0:02:57]} 5. c3 {[%clk 0:03:01]}  Ba5 {[%clk 0:02:55]} 6. d4 {[%clk 0:03:01]}  d6 {[%clk 0:02:47]} 7. Qb3 {[%clk 0:03:01]}  Qd7 {[%clk 0:02:42]} 8. O-O {[%clk 0:03:01]}  Bb6 {[%clk 0:02:42]} 9. Nbd2 {[%clk 0:03:01]}  Na5 {[%clk 0:02:39]} 10. Qc2 {[%clk 0:03:01]}  Nxc4 {[%clk 0:02:31]} 11. Nxc4 {[%clk 0:03:02]}  Qc6 {[%clk 0:02:31]} 12. Qe2 {[%clk 0:03:01]}  Nf6 {[%clk 0:02:22]} 13. Re1 {[%clk 0:02:45]}  Bg4 {[%clk 0:01:57]} 14. dxe5 {[%clk 0:02:41]}  Bxf3 {[%clk 0:01:57]} 15. Qxf3 {[%clk 0:02:31]}  Nd7 {[%clk 0:01:41]} 16. Nxb6 {[%clk 0:02:02]}  Nxe5 {[%clk 0:01:39]} 17. Qg3 {[%clk 0:01:55]}  axb6 {[%clk 0:01:39]} 18. Qxg7 {[%clk 0:01:45]}  O-O-O {[%clk 0:01:39]} 19. Qf6 {[%clk 0:01:43]}  Rhg8 {[%clk 0:01:28]} 20. Kh1 {[%clk 0:00:52]}  Rg6 {[%clk 0:01:05]} 21. Qf5+ {[%clk 0:00:52]}  Kb8 {[%clk 0:01:06]} 22. Be3 {[%clk 0:00:37]}  Rdg8 {[%clk 0:01:04]} 23. g3 {[%clk 0:00:29]}  Ng4 {[%clk 0:01:04]} 24. Bd4 {[%clk 0:00:24]}  Qc4 {[%clk 0:00:44]} 25. h3 {[%clk 0:00:21]}  c5 {[%clk 0:00:42]} 26. hxg4 {[%clk 0:00:17]}  cxd4 {[%clk 0:00:43]} 27. cxd4 {[%clk 0:00:15]}  Qxd4 {[%clk 0:00:42]} 28. Rad1 {[%clk 0:00:13]}  Qe5 {[%clk 0:00:33]} 29. Qxe5 {[%clk 0:00:06]}  dxe5 {[%clk 0:00:33]} 30. Rd7 {[%clk 0:00:06]}  Rf6 {[%clk 0:00:28]} 31. Kg2 {[%clk 0:00:04]}  Rxg4 {[%clk 0:00:29]} 32. Rc1 {[%clk 0:00:02]}  Rc6 {[%clk 0:00:14]} 33. Rxc6 {[%clk 0:00:02]}  bxc6 {[%clk 0:00:15]} 34. f3 {[%clk 0:00:03]}  Rg7 {[%clk 0:00:15]} 35. Re7 {[%clk 0:00:03]}  b5 {[%clk 0:00:09]} 36. Kh3 {[%clk 0:00:03]}  Kc8 {[%clk 0:00:07]} 37. g4 {[%clk 0:00:03]}  Kd8 {[%clk 0:00:07]} 38. Rxe5 {[%clk 0:00:02]}  Kd7 {[%clk 0:00:08]} 39. Kg3 {[%clk 0:00:02]}  f6 {[%clk 0:00:08]} 40. Rh5 {[%clk 0:00:02]}  Ke6 {[%clk 0:00:08]} 41. Kf4 {[%clk 0:00:03]}  Ra7 {[%clk 0:00:08]} 42. Rh6 {[%clk 0:00:03]}  Rxa2 {[%clk 0:00:05]} 43. g5 {[%clk 0:00:03]}  b4 {[%clk 0:00:06]} 44. Rxf6+ {[%clk 0:00:03]}  Kd7 {[%clk 0:00:06]} 45. Rf7+ {[%clk 0:00:04]}  Kd6 {[%clk 0:00:05]} 46. Rxh7 {[%clk 0:00:04]}  c5 {[%clk 0:00:03]} 47. Rb7 {[%clk 0:00:05]}  Kc6 {[%clk 0:00:03]} 48. Rb8 {[%clk 0:00:05]}  Kc7 {[%clk 0:00:04]} 49. Rb5 {[%clk 0:00:06]}  Kc6 {[%clk 0:00:04]} 50. Rb8 {[%clk 0:00:06]}  Kc7 {[%clk 0:00:03]} 51. Rb5 {[%clk 0:00:05]}  Kc6 {[%clk 0:00:03]} 52. Rb8 {[%clk 0:00:04]} 1/2-1/2


[Site "https://www.chess.com"]

[Event "Titled Tuesday Blitz February 21 Late 2023"]
[White "Vasquez Schroeder, Rodrigo"]
[Black "KhalilMousavi98"]
[WhiteFideId "3400042"]
[WhiteElo "2524"]
[BlackElo "2871"]
[Result "1-0"]
[Round "07"]
[TimeControl "180+2"]
[Date "2023.02.21"]
[WhiteClock "0:01:05"]
[BlackClock "0:00:01"]

1. d4 {[%clk 0:03:00]}  d5 {[%clk 0:02:59]} 2. c4 {[%clk 0:02:58]}  e6 {[%clk 0:02:59]} 3. Nc3 {[%clk 0:02:57]}  c5 {[%clk 0:03:00]} 4. e3 {[%clk 0:02:54]}  Nc6 {[%clk 0:02:59]} 5. Nf3 {[%clk 0:02:54]}  Nf6 {[%clk 0:02:58]} 6. a3 {[%clk 0:02:54]}  a6 {[%clk 0:02:58]} 7. b3 {[%clk 0:02:54]}  cxd4 {[%clk 0:02:49]} 8. exd4 {[%clk 0:02:53]}  Ne4 {[%clk 0:02:43]} 9. Bb2 {[%clk 0:02:50]}  Be7 {[%clk 0:02:42]} 10. Bd3 {[%clk 0:02:45]}  f5 {[%clk 0:02:40]} 11. O-O {[%clk 0:02:39]}  Bf6 {[%clk 0:02:40]} 12. Be2 {[%clk 0:02:29]}  O-O {[%clk 0:02:27]} 13. cxd5 {[%clk 0:02:28]}  Nxc3 {[%clk 0:02:28]} 14. Bxc3 {[%clk 0:02:27]}  exd5 {[%clk 0:02:29]} 15. Bd3 {[%clk 0:02:22]}  Re8 {[%clk 0:02:28]} 16. Qc2 {[%clk 0:02:21]}  g6 {[%clk 0:02:22]} 17. Rfe1 {[%clk 0:02:20]}  Be6 {[%clk 0:02:20]} 18. Qb2 {[%clk 0:02:15]}  Bf7 {[%clk 0:02:18]} 19. b4 {[%clk 0:02:10]}  Qd6 {[%clk 0:02:10]} 20. a4 {[%clk 0:02:08]}  Rxe1+ {[%clk 0:01:59]} 21. Rxe1 {[%clk 0:02:08]}  Re8 {[%clk 0:01:57]} 22. Rb1 {[%clk 0:01:54]}  Nb8 {[%clk 0:01:16]} 23. Ne5 {[%clk 0:01:48]}  Nd7 {[%clk 0:01:12]} 24. f4 {[%clk 0:01:47]}  Nb6 {[%clk 0:01:10]} 25. Qb3 {[%clk 0:01:47]}  Rc8 {[%clk 0:00:59]} 26. b5 {[%clk 0:01:47]}  Nc4 {[%clk 0:00:58]} 27. bxa6 {[%clk 0:01:39]}  bxa6 {[%clk 0:00:56]} 28. Bxc4 {[%clk 0:01:32]}  dxc4 {[%clk 0:00:56]} 29. Qb6 {[%clk 0:01:32]}  Qxb6 {[%clk 0:00:33]} 30. Rxb6 {[%clk 0:01:31]}  Bxe5 {[%clk 0:00:31]} 31. fxe5 {[%clk 0:01:29]}  Bd5 {[%clk 0:00:26]} 32. Rd6 {[%clk 0:01:20]}  Be4 {[%clk 0:00:19]} 33. d5 {[%clk 0:01:20]}  Kf7 {[%clk 0:00:08]} 34. e6+ {[%clk 0:01:19]}  Ke8 {[%clk 0:00:08]} 35. Rd7 {[%clk 0:01:14]}  Rc5 {[%clk 0:00:07]} 36. d6 {[%clk 0:01:13]}  Bd5 {[%clk 0:00:02]} 37. Re7+ {[%clk 0:01:04]}  Kd8 {[%clk 0:00:01]} 38. Bf6 {[%clk 0:01:05]}  Kc8 {[%clk 0:00:01]} 39. d7+ {[%clk 0:01:04]}  Kc7 {[%clk 0:00:01]} 40. Re8 {[%clk 0:01:05]}  Bxe6 {[%clk 0:00:01]} 41. d8=Q+ {[%clk 0:01:05]} 1-0


[Site "https://www.chess.com"]

[Event "Titled Tuesday Blitz February 21 Late 2023"]
[White "Swiercz, Dariusz"]
[Black "Florescu, Codrut-Constantin"]
[WhiteFideId "1126881"]
[BlackFideId "1202200"]
[WhiteElo "2637"]
[BlackElo "2259"]
[Result "1/2-1/2"]
[Round "07"]
[TimeControl "180+2"]
[Date "2023.02.21"]
[WhiteClock "0:00:04"]
[BlackClock "0:00:12"]

1. e4 {[%clk 0:02:57]}  c5 {[%clk 0:02:59]} 2. Nf3 {[%clk 0:02:57]}  e6 {[%clk 0:03:00]} 3. g3 {[%clk 0:02:58]}  d5 {[%clk 0:02:59]} 4. exd5 {[%clk 0:02:57]}  exd5 {[%clk 0:03:00]} 5. Bg2 {[%clk 0:02:58]}  Nf6 {[%clk 0:03:00]} 6. O-O {[%clk 0:02:58]}  Nc6 {[%clk 0:03:00]} 7. d4 {[%clk 0:02:59]}  Be7 {[%clk 0:03:00]} 8. dxc5 {[%clk 0:02:59]}  Bxc5 {[%clk 0:03:00]} 9. Re1+ {[%clk 0:03:00]}  Be6 {[%clk 0:02:59]} 10. Be3 {[%clk 0:03:00]}  Bxe3 {[%clk 0:02:55]} 11. Rxe3 {[%clk 0:03:01]}  O-O {[%clk 0:02:55]} 12. c3 {[%clk 0:03:01]}  Rc8 {[%clk 0:02:47]} 13. Nd4 {[%clk 0:02:52]}  Bg4 {[%clk 0:02:43]} 14. Qd2 {[%clk 0:02:43]}  Re8 {[%clk 0:02:39]} 15. Na3 {[%clk 0:02:35]}  Qb6 {[%clk 0:02:37]} 16. Rae1 {[%clk 0:01:44]}  Rxe3 {[%clk 0:02:35]} 17. Rxe3 {[%clk 0:01:40]}  Nxd4 {[%clk 0:02:34]} 18. cxd4 {[%clk 0:01:37]}  Bf5 {[%clk 0:02:24]} 19. Rb3 {[%clk 0:01:06]}  Qa6 {[%clk 0:01:54]} 20. Rc3 {[%clk 0:00:51]}  Rxc3 {[%clk 0:01:41]} 21. Qxc3 {[%clk 0:00:52]}  Qe2 {[%clk 0:01:39]} 22. Bf3 {[%clk 0:00:49]}  Qe7 {[%clk 0:01:36]} 23. Nb5 {[%clk 0:00:30]}  a6 {[%clk 0:01:27]} 24. Nc7 {[%clk 0:00:29]}  Be4 {[%clk 0:01:18]} 25. Bxe4 {[%clk 0:00:19]}  dxe4 {[%clk 0:01:04]} 26. Na8 {[%clk 0:00:08]}  h5 {[%clk 0:01:01]} 27. Nb6 {[%clk 0:00:06]}  Kh7 {[%clk 0:00:54]} 28. Qc5 {[%clk 0:00:04]}  Qe6 {[%clk 0:00:52]} 29. Nc4 {[%clk 0:00:02]}  b5 {[%clk 0:00:42]} 30. Ne3 {[%clk 0:00:02]}  Qxa2 {[%clk 0:00:33]} 31. b4 {[%clk 0:00:02]}  Qe6 {[%clk 0:00:28]} 32. d5 {[%clk 0:00:02]}  Qe5 {[%clk 0:00:19]} 33. h4 {[%clk 0:00:03]}  Ng4 {[%clk 0:00:15]} 34. Nxg4 {[%clk 0:00:03]}  hxg4 {[%clk 0:00:14]} 35. d6 {[%clk 0:00:03]}  Qa1+ {[%clk 0:00:13]} 36. Kg2 {[%clk 0:00:04]}  Qd1 {[%clk 0:00:14]} 37. Qf5+ {[%clk 0:00:03]}  Kg8 {[%clk 0:00:11]} 38. Qc8+ {[%clk 0:00:03]}  Kh7 {[%clk 0:00:11]} 39. Qf5+ {[%clk 0:00:04]}  Kg8 {[%clk 0:00:11]} 40. Qc8+ {[%clk 0:00:03]}  Kh7 {[%clk 0:00:11]} 41. d7 {[%clk 0:00:04]}  e3 {[%clk 0:00:10]} 42. fxe3 {[%clk 0:00:02]}  Qe2+ {[%clk 0:00:09]} 43. Kg1 {[%clk 0:00:02]}  Qe1+ {[%clk 0:00:10]} 44. Kg2 {[%clk 0:00:03]}  Qe2+ {[%clk 0:00:10]} 45. Kg1 {[%clk 0:00:04]}  Qe1+ {[%clk 0:00:11]} 46. Kg2 {[%clk 0:00:04]}  Qe2+ {[%clk 0:00:12]} 1/2-1/2


[Site "https://www.chess.com"]

[Event "Titled Tuesday Blitz February 21 Late 2023"]
[White "Li, Ruifeng"]
[Black "Bortnyk, Olexandr"]
[WhiteFideId "2061074"]
[BlackFideId "14120828"]
[WhiteElo "2541"]
[BlackElo "2605"]
[Result "0-1"]
[Round "07"]
[TimeControl "180+2"]
[Date "2023.02.21"]
[WhiteClock "0:00:06"]
[BlackClock "0:00:05"]

1. b3 {[%clk 0:03:00]}  d5 {[%clk 0:02:58]} 2. Bb2 {[%clk 0:02:57]}  Bf5 {[%clk 0:02:57]} 3. g3 {[%clk 0:02:55]}  e6 {[%clk 0:02:57]} 4. Bg2 {[%clk 0:02:56]}  Nf6 {[%clk 0:02:57]} 5. d3 {[%clk 0:02:57]}  h6 {[%clk 0:02:56]} 6. Nd2 {[%clk 0:02:57]}  Be7 {[%clk 0:02:57]} 7. e4 {[%clk 0:02:52]}  Bh7 {[%clk 0:02:57]} 8. Ne2 {[%clk 0:02:52]}  O-O {[%clk 0:02:57]} 9. O-O {[%clk 0:02:53]}  a5 {[%clk 0:02:57]} 10. a4 {[%clk 0:02:47]}  Na6 {[%clk 0:02:56]} 11. Nf4 {[%clk 0:02:41]}  Nb4 {[%clk 0:02:49]} 12. Re1 {[%clk 0:02:20]}  c5 {[%clk 0:02:30]} 13. Rc1 {[%clk 0:02:01]}  Na2 {[%clk 0:02:27]} 14. Ra1 {[%clk 0:02:00]}  Nb4 {[%clk 0:02:28]} 15. Rc1 {[%clk 0:02:00]}  Rc8 {[%clk 0:02:23]} 16. exd5 {[%clk 0:01:54]}  exd5 {[%clk 0:02:24]} 17. Qf3 {[%clk 0:01:51]}  Re8 {[%clk 0:02:13]} 18. h4 {[%clk 0:01:44]}  b6 {[%clk 0:01:13]} 19. Bh3 {[%clk 0:01:38]}  Rb8 {[%clk 0:01:08]} 20. Re2 {[%clk 0:01:13]}  Bf8 {[%clk 0:01:02]} 21. Rxe8 {[%clk 0:01:10]}  Nxe8 {[%clk 0:01:03]} 22. Nf1 {[%clk 0:00:35]}  c4 {[%clk 0:00:47]} 23. dxc4 {[%clk 0:00:28]}  dxc4 {[%clk 0:00:48]} 24. bxc4 {[%clk 0:00:28]}  Bxc2 {[%clk 0:00:48]} 25. Ne3 {[%clk 0:00:27]}  Bxa4 {[%clk 0:00:46]} 26. Ned5 {[%clk 0:00:13]}  Nxd5 {[%clk 0:00:37]} 27. cxd5 {[%clk 0:00:14]}  Qd6 {[%clk 0:00:32]} 28. Ne6 {[%clk 0:00:13]}  Be7 {[%clk 0:00:19]} 29. Nxg7 {[%clk 0:00:11]}  Nxg7 {[%clk 0:00:19]} 30. Qg4 {[%clk 0:00:11]}  Bf6 {[%clk 0:00:16]} 31. Bxf6 {[%clk 0:00:12]}  Qxf6 {[%clk 0:00:16]} 32. Qxa4 {[%clk 0:00:12]}  Qe5 {[%clk 0:00:07]} 33. Rd1 {[%clk 0:00:11]}  Rd8 {[%clk 0:00:07]} 34. Qc6 {[%clk 0:00:10]}  Qd6 {[%clk 0:00:04]} 35. Qb7 {[%clk 0:00:09]}  a4 {[%clk 0:00:04]} 36. Bf1 {[%clk 0:00:04]}  a3 {[%clk 0:00:04]} 37. Bc4 {[%clk 0:00:05]}  Qb4 {[%clk 0:00:03]} 38. Rd4 {[%clk 0:00:04]}  a2 {[%clk 0:00:02]} 39. Bxa2 {[%clk 0:00:03]}  Qxd4 {[%clk 0:00:02]} 40. d6 {[%clk 0:00:04]}  Qd1+ {[%clk 0:00:02]} 41. Kh2 {[%clk 0:00:03]}  Qxd6 {[%clk 0:00:02]} 42. Qxf7+ {[%clk 0:00:03]}  Kh8 {[%clk 0:00:03]} 43. Bb1 {[%clk 0:00:04]}  Rf8 {[%clk 0:00:03]} 44. Qa2 {[%clk 0:00:03]}  Qf6 {[%clk 0:00:02]} 45. Kg1 {[%clk 0:00:03]}  Qc3 {[%clk 0:00:02]} 46. Kg2 {[%clk 0:00:02]}  Qc6+ {[%clk 0:00:02]} 47. Kg1 {[%clk 0:00:03]}  b5 {[%clk 0:00:02]} 48. Qd2 {[%clk 0:00:03]}  Qf6 {[%clk 0:00:01]} 49. Be4 {[%clk 0:00:03]}  Qe5 {[%clk 0:00:02]} 50. Qxh6+ {[%clk 0:00:03]}  Kg8 {[%clk 0:00:02]} 51. Qh7+ {[%clk 0:00:03]}  Kf7 {[%clk 0:00:03]} 52. Qg6+ {[%clk 0:00:04]}  Ke7 {[%clk 0:00:03]} 53. h5 {[%clk 0:00:04]}  b4 {[%clk 0:00:03]} 54. h6 {[%clk 0:00:04]}  Ne6 {[%clk 0:00:03]} 55. h7 {[%clk 0:00:05]}  Qd4 {[%clk 0:00:03]} 56. Bf5 {[%clk 0:00:05]}  Qf6 {[%clk 0:00:03]} 57. Qg4 {[%clk 0:00:05]}  b3 {[%clk 0:00:02]} 58. Qb4+ {[%clk 0:00:05]}  Kf7 {[%clk 0:00:03]} 59. Bxe6+ {[%clk 0:00:06]}  Kxe6 {[%clk 0:00:02]} 60. Qxb3+ {[%clk 0:00:06]}  Kf5 {[%clk 0:00:02]} 61. Qf3+ {[%clk 0:00:06]}  Kg6 {[%clk 0:00:02]} 62. Qe4+ {[%clk 0:00:06]}  Kg7 {[%clk 0:00:02]} 63. Qb7+ {[%clk 0:00:05]}  Kh8 {[%clk 0:00:02]} 64. Qg2 {[%clk 0:00:04]}  Kxh7 {[%clk 0:00:03]} 65. Qh3+ {[%clk 0:00:05]}  Kg7 {[%clk 0:00:03]} 66. Qg4+ {[%clk 0:00:05]}  Qg6 {[%clk 0:00:04]} 67. Qd4+ {[%clk 0:00:06]}  Qf6 {[%clk 0:00:03]} 68. Qe3 {[%clk 0:00:06]}  Rf7 {[%clk 0:00:03]} 69. Qc5 {[%clk 0:00:06]}  Qa1+ {[%clk 0:00:02]} 70. Kg2 {[%clk 0:00:06]}  Qf6 {[%clk 0:00:02]} 71. Qe3 {[%clk 0:00:06]}  Re7 {[%clk 0:00:03]} 72. Qd2 {[%clk 0:00:05]}  Qe5 {[%clk 0:00:03]} 73. Kh2 {[%clk 0:00:03]}  Qh5+ {[%clk 0:00:03]} 74. Kg2 {[%clk 0:00:03]}  Qe5 {[%clk 0:00:03]} 75. Kh2 {[%clk 0:00:03]}  Re6 {[%clk 0:00:03]} 76. Qd3 {[%clk 0:00:03]}  Qh5+ {[%clk 0:00:03]} 77. Kg2 {[%clk 0:00:03]}  Qe5 {[%clk 0:00:04]} 78. Kh2 {[%clk 0:00:03]}  Qe2 {[%clk 0:00:05]} 79. Qc3+ {[%clk 0:00:03]}  Kg6 {[%clk 0:00:05]} 80. Qc5 {[%clk 0:00:04]}  Qh5+ {[%clk 0:00:04]} 81. Qxh5+ {[%clk 0:00:04]}  Kxh5 {[%clk 0:00:05]} 82. Kg2 {[%clk 0:00:05]}  Re2 {[%clk 0:00:05]} 83. Kf3 {[%clk 0:00:05]}  Ra2 {[%clk 0:00:05]} 84. Kf4 {[%clk 0:00:05]}  Rxf2+ {[%clk 0:00:05]} 85. Ke5 {[%clk 0:00:06]}  Rf8 {[%clk 0:00:05]} 0-1


[Site "https://www.chess.com"]

[Event "Titled Tuesday Blitz February 21 Late 2023"]
[White "Rustemov, Alexander"]
[Black "Martinez Alcantara, Jose Eduardo"]
[WhiteFideId "4119002"]
[BlackFideId "3805662"]
[WhiteElo "2525"]
[BlackElo "2619"]
[Result "1-0"]
[Round "07"]
[TimeControl "180+2"]
[Date "2023.02.21"]
[WhiteClock "0:00:08"]
[BlackClock "0:01:30"]

1. d4 {[%clk 0:03:00]}  Nf6 {[%clk 0:03:00]} 2. c4 {[%clk 0:02:59]}  e6 {[%clk 0:03:01]} 3. Nf3 {[%clk 0:03:00]}  Bb4+ {[%clk 0:03:00]} 4. Bd2 {[%clk 0:03:00]}  c5 {[%clk 0:03:00]} 5. Bxb4 {[%clk 0:02:59]}  cxb4 {[%clk 0:03:01]} 6. g3 {[%clk 0:02:59]}  b6 {[%clk 0:03:01]} 7. Bg2 {[%clk 0:03:00]}  Bb7 {[%clk 0:03:02]} 8. O-O {[%clk 0:03:00]}  a5 {[%clk 0:03:02]} 9. Qd3 {[%clk 0:03:00]}  O-O {[%clk 0:03:03]} 10. Nbd2 {[%clk 0:03:00]}  d6 {[%clk 0:03:03]} 11. a3 {[%clk 0:02:59]}  Na6 {[%clk 0:03:03]} 12. e4 {[%clk 0:02:59]}  Qc7 {[%clk 0:03:01]} 13. Rfe1 {[%clk 0:02:48]}  e5 {[%clk 0:03:01]} 14. h3 {[%clk 0:02:47]}  Rfe8 {[%clk 0:03:01]} 15. Re3 {[%clk 0:02:27]}  Rac8 {[%clk 0:02:56]} 16. Rd1 {[%clk 0:02:24]}  Bc6 {[%clk 0:02:52]} 17. Nh4 {[%clk 0:02:19]}  Ba4 {[%clk 0:02:47]} 18. b3 {[%clk 0:02:13]}  Bd7 {[%clk 0:02:47]} 19. a4 {[%clk 0:02:13]}  Nb8 {[%clk 0:02:44]} 20. f4 {[%clk 0:02:06]}  Nc6 {[%clk 0:02:39]} 21. Ndf3 {[%clk 0:01:55]}  Rcd8 {[%clk 0:02:29]} 22. Qd2 {[%clk 0:01:35]}  exf4 {[%clk 0:02:24]} 23. gxf4 {[%clk 0:01:25]}  Nxe4 {[%clk 0:02:24]} 24. Qe1 {[%clk 0:01:22]}  Nc3 {[%clk 0:02:24]} 25. Rdd3 {[%clk 0:01:19]}  Qc8 {[%clk 0:02:14]} 26. Kh2 {[%clk 0:01:18]}  h6 {[%clk 0:02:12]} 27. d5 {[%clk 0:01:08]}  Nb8 {[%clk 0:02:12]} 28. Nd4 {[%clk 0:01:06]}  Rxe3 {[%clk 0:02:10]} 29. Rxe3 {[%clk 0:01:06]}  Re8 {[%clk 0:02:11]} 30. Rxe8+ {[%clk 0:00:59]}  Qxe8 {[%clk 0:02:11]} 31. Qxe8+ {[%clk 0:00:58]}  Bxe8 {[%clk 0:02:12]} 32. Nhf5 {[%clk 0:00:59]}  Bd7 {[%clk 0:02:08]} 33. Nxd6 {[%clk 0:00:59]}  Na6 {[%clk 0:02:07]} 34. Ne4 {[%clk 0:00:43]}  Nc5 {[%clk 0:02:07]} 35. Nxc5 {[%clk 0:00:41]}  bxc5 {[%clk 0:02:08]} 36. Nc6 {[%clk 0:00:42]}  Bf5 {[%clk 0:01:37]} 37. Nxa5 {[%clk 0:00:42]}  Bc2 {[%clk 0:01:37]} 38. d6 {[%clk 0:00:38]}  Kf8 {[%clk 0:01:38]} 39. Bc6 {[%clk 0:00:32]}  Ne2 {[%clk 0:01:23]} 40. d7 {[%clk 0:00:30]}  Ke7 {[%clk 0:01:23]} 41. Nb7 {[%clk 0:00:30]}  Kf6 {[%clk 0:01:23]} 42. d8=Q+ {[%clk 0:00:30]}  Kf5 {[%clk 0:01:24]} 43. Nd6+ {[%clk 0:00:23]}  Kxf4 {[%clk 0:01:25]} 44. Qh4+ {[%clk 0:00:21]}  Ke3 {[%clk 0:01:25]} 45. Qe7+ {[%clk 0:00:14]}  Kd2 {[%clk 0:01:24]} 46. Nxf7 {[%clk 0:00:14]}  Nd4 {[%clk 0:01:25]} 47. Qxc5 {[%clk 0:00:13]}  Kc3 {[%clk 0:01:25]} 48. a5 {[%clk 0:00:11]}  Nxb3 {[%clk 0:01:26]} 49. Qe5+ {[%clk 0:00:11]}  Kd2 {[%clk 0:01:26]} 50. a6 {[%clk 0:00:11]}  Nc1 {[%clk 0:01:26]} 51. a7 {[%clk 0:00:11]}  Nd3 {[%clk 0:01:27]} 52. Qd6 {[%clk 0:00:09]}  b3 {[%clk 0:01:28]} 53. a8=Q {[%clk 0:00:09]}  b2 {[%clk 0:01:28]} 54. Qa5+ {[%clk 0:00:09]}  Kc1 {[%clk 0:01:28]} 55. Qb6 {[%clk 0:00:08]}  g5 {[%clk 0:01:27]} 56. c5 {[%clk 0:00:08]}  b1=Q {[%clk 0:01:27]} 57. Qxb1+ {[%clk 0:00:08]}  Kxb1 {[%clk 0:01:28]} 58. Be4 {[%clk 0:00:08]}  Nb4 {[%clk 0:01:27]} 59. Bxc2+ {[%clk 0:00:08]}  Nxc2 {[%clk 0:01:27]} 60. c6 {[%clk 0:00:08]}  Kb2 {[%clk 0:01:28]} 61. c7 {[%clk 0:00:09]}  Ne3 {[%clk 0:01:29]} 62. c8=Q {[%clk 0:00:08]}  Nf1+ {[%clk 0:01:30]} 63. Kg1 {[%clk 0:00:08]}  Ne3 {[%clk 0:01:30]} 64. Qb4+ {[%clk 0:00:08]} 1-0


[Site "https://www.chess.com"]

[Event "Titled Tuesday Blitz February 21 Late 2023"]
[White "Fedoseev, Vladimir"]
[Black "Bikuzhin, Maksim"]
[WhiteFideId "24130737"]
[BlackFideId "24128015"]
[WhiteElo "2680"]
[BlackElo "2279"]
[Result "1-0"]
[Round "07"]
[TimeControl "180+2"]
[Date "2023.02.21"]
[WhiteClock "0:00:10"]
[BlackClock "0:00:01"]

1. a3 {[%clk 0:02:10]}  d5 {[%clk 0:02:58]} 2. h4 {[%clk 0:02:09]}  e5 {[%clk 0:02:57]} 3. d3 {[%clk 0:02:10]}  Nc6 {[%clk 0:02:57]} 4. g3 {[%clk 0:02:09]}  f5 {[%clk 0:02:56]} 5. Bg2 {[%clk 0:02:09]}  Nf6 {[%clk 0:02:55]} 6. Bg5 {[%clk 0:02:10]}  Be6 {[%clk 0:02:54]} 7. Nd2 {[%clk 0:02:10]}  h6 {[%clk 0:02:52]} 8. Bxf6 {[%clk 0:02:09]}  Qxf6 {[%clk 0:02:52]} 9. e3 {[%clk 0:02:10]}  O-O-O {[%clk 0:02:47]} 10. Ne2 {[%clk 0:02:10]}  Bd6 {[%clk 0:02:47]} 11. c3 {[%clk 0:02:01]}  g5 {[%clk 0:02:47]} 12. Qa4 {[%clk 0:01:58]}  Kb8 {[%clk 0:02:40]} 13. O-O-O {[%clk 0:01:57]}  e4 {[%clk 0:02:34]} 14. d4 {[%clk 0:01:50]}  Ne7 {[%clk 0:02:29]} 15. f4 {[%clk 0:01:37]}  Rhg8 {[%clk 0:02:20]} 16. Bf1 {[%clk 0:01:30]}  c6 {[%clk 0:02:17]} 17. Kb1 {[%clk 0:01:29]}  Nc8 {[%clk 0:02:08]} 18. Qc2 {[%clk 0:01:25]}  gxf4 {[%clk 0:02:00]} 19. gxf4 {[%clk 0:01:25]}  Rg4 {[%clk 0:01:49]} 20. h5 {[%clk 0:01:24]}  Rh4 {[%clk 0:01:43]} 21. Rg1 {[%clk 0:01:19]}  Rxh5 {[%clk 0:01:39]} 22. c4 {[%clk 0:01:18]}  Rh2 {[%clk 0:01:34]} 23. cxd5 {[%clk 0:01:17]}  cxd5 {[%clk 0:01:31]} 24. Nc3 {[%clk 0:01:18]}  Qh4 {[%clk 0:01:11]} 25. Nb5 {[%clk 0:01:12]}  Qf2 {[%clk 0:01:02]} 26. Rg6 {[%clk 0:01:11]}  a6 {[%clk 0:00:44]} 27. Rxe6 {[%clk 0:00:48]}  axb5 {[%clk 0:00:44]} 28. Qb3 {[%clk 0:00:48]}  Na7 {[%clk 0:00:34]} 29. Qxd5 {[%clk 0:00:42]}  Bc7 {[%clk 0:00:31]} 30. Qxf5 {[%clk 0:00:33]}  Qxe3 {[%clk 0:00:29]} 31. Rxe4 {[%clk 0:00:18]}  Qg3 {[%clk 0:00:24]} 32. Be2 {[%clk 0:00:18]}  Rf2 {[%clk 0:00:19]} 33. Rc1 {[%clk 0:00:16]}  Rxf4 {[%clk 0:00:15]} 34. Qc5 {[%clk 0:00:15]}  Rxe4 {[%clk 0:00:13]} 35. Nxe4 {[%clk 0:00:14]}  Qf4 {[%clk 0:00:13]} 36. Bd3 {[%clk 0:00:15]}  Qf7 {[%clk 0:00:09]} 37. Nc3 {[%clk 0:00:13]}  Qd7 {[%clk 0:00:08]} 38. d5 {[%clk 0:00:12]}  Qd6 {[%clk 0:00:07]} 39. Qd4 {[%clk 0:00:12]}  Bb6 {[%clk 0:00:07]} 40. Qe4 {[%clk 0:00:12]}  Bc5 {[%clk 0:00:05]} 41. Bxb5 {[%clk 0:00:12]}  Nc8 {[%clk 0:00:04]} 42. Bc4 {[%clk 0:00:11]}  Na7 {[%clk 0:00:04]} 43. Qf3 {[%clk 0:00:11]}  Rf8 {[%clk 0:00:03]} 44. Qh3 {[%clk 0:00:10]}  Bd4 {[%clk 0:00:02]} 45. Ka2 {[%clk 0:00:09]}  Bxc3 {[%clk 0:00:02]} 46. Rxc3 {[%clk 0:00:10]}  Nc8 {[%clk 0:00:02]} 47. Bb3 {[%clk 0:00:10]}  Qe7 {[%clk 0:00:02]} 48. Qxh6 {[%clk 0:00:09]}  Nd6 {[%clk 0:00:02]} 49. Qh2 {[%clk 0:00:09]}  Ka8 {[%clk 0:00:01]} 50. Rh3 {[%clk 0:00:10]} 1-0


[Site "https://www.chess.com"]